bitfinex/quotes_SOLUSD_20251117
["timestamp","ask_amount","ask_price","bid_price","bid_amount"]
[1763385329204,8.56,141.26,141.24,6.44971267]
[1763385329406,8.56,141.26,141.25,6.44971267]
[1763385331040,8.56,141.26,141.23,0.69]
[1763385331211,8.56,141.26,141.25,6.44971267]
[1763385332236,8.56,141.26,141.23,0.69]
[1763385332607,8.56,141.26,141.25,6.44971267]
[1763385332812,8.56,141.26,141.23,0.69]
[1763385333035,8.56,141.26,141.25,6.44971267]
[1763385335637,8.56,141.26,141.25,7.13971267]
[1763385335934,8.56,141.26,141.25,6.44971267]
[1763385336936,8.56,141.26,141.25,7.13971267]
[1763385337518,8.56,141.26,141.2,6.44971267]
[1763385337722,8.56,141.26,141.25,6.44971267]
[1763385338230,8.56,141.26,141.25,7.13971267]
[1763385338626,8.56,141.26,141.25,6.44971267]
[1763385338830,8.56,141.26,141.25,11.19473541]
[1763385339021,8.56,141.26,141.25,11.88473541]
[1763385340719,8.56,141.26,141.25,0.69]
[1763385340918,8.56,141.26,141.25,11.88473541]
[1763385341138,8.54,141.29,141.25,11.88473541]
[1763385341317,8.54,141.29,141.23,25.20155396]
[1763385341318,8.54,141.29,141.26,11.88473541]
[1763385350544,0.68,141.32,141.26,11.88473541]
[1763385350856,9.2,141.32,141.26,11.88473541]
[1763385351059,0.68,141.31,141.26,0.69]
[1763385351270,0.88,141.27,141.23,0.69]
[1763385351439,0.88,141.27,141.26,11.19473541]
[1763385352144,0.88,141.27,141.2,19.71473541]
[1763385352145,0.88,141.27,141.21,18.81096]
[1763385352348,0.88,141.27,141.26,11.19473541]
[1763385352349,9.4,141.27,141.26,11.19473541]
[1763385352555,8.72,141.27,141.21,18.81096]
[1763385352752,0.68,141.26,141.25,11.19473541]
[1763385353361,0.68,141.26,141.21,0.69]
[1763385353553,0.68,141.26,141.25,11.19473541]
[1763385354462,0.68,141.26,141.21,0.69]
[1763385354630,0.68,141.26,141.25,11.19473541]
[1763385354830,0.68,141.26,141.21,0.69]
[1763385354831,0.68,141.26,141.22,11.19473541]
[1763385355064,0.68,141.26,141.24,11.19473541]
[1763385355260,8.72,141.27,141.25,11.19473541]
[1763385355461,8.72,141.27,141.26,11.19473541]
[1763385356342,8.72,141.27,141.24,0.69]
[1763385356558,9.4,141.27,141.22,0.69]
[1763385356758,9.4,141.27,141.26,11.19473541]
[1763385357648,8.72,141.27,141.26,11.19473541]
[1763385358564,8.72,141.27,141.26,11.88473541]
[1763385359365,0.2,141.27,141.26,11.88473541]
[1763385361480,0.68,141.33,141.26,11.88473541]
[1763385361771,8.52,141.34,141.32,11.19473541]
[1763385361969,8.52,141.34,141.33,11.19473541]
[1763385362160,0.2,141.36,141.33,11.19473541]
[1763385362345,0.2,141.36,141.35,11.19473541]
[1763385362777,0.2,141.36,141.35,11.88473541]
[1763385365196,0.2,141.37,141.36,29.31569541]
[1763385365484,0.2,141.38,141.36,30.00569541]
[1763385365650,0.2,141.38,141.37,11.19473541]
[1763385365987,0.2,141.38,141.37,11.88473541]
[1763385368651,0.2,141.38,141.37,11.89473541]
[1763385369072,0.2,141.38,141.35,26.64096]
[1763385369376,0.2,141.38,141.37,11.19473541]
[1763385369578,0.86,141.38,141.37,11.19473541]
[1763385369758,0.86,141.38,141.31,8.52]
[1763385370095,0.66,141.37,141.35,11.19473541]
[1763385370381,8.72,141.38,141.36,11.19473541]
[1763385370580,8.72,141.38,141.37,11.19473541]
[1763385370885,9.38,141.38,141.37,11.19473541]
[1763385372852,9.38,141.38,141.36,11.19473541]
[1763385373155,0.66,141.37,141.36,11.19473541]
[1763385374378,0.66,141.37,141.35,11.19473541]
[1763385374985,0.66,141.37,141.3,11.19473541]
[1763385374986,0.66,141.37,141.33,11.19473541]
[1763385375286,0.66,141.37,141.34,11.19473541]
[1763385376996,0.66,141.37,141.35,11.19473541]
[1763385377195,0.66,141.37,141.34,11.19473541]
[1763385377498,0.66,141.37,141.35,11.19473541]
[1763385378982,0.66,141.37,141.36,11.19473541]
[1763385379387,0.66,141.37,141.31,0.69]
[1763385379587,0.66,141.37,141.36,11.19473541]
[1763385382089,8.72,141.38,141.36,11.19473541]
[1763385382291,9.42,141.38,141.37,11.19473541]
[1763385382783,9.42,141.38,141.32,0.69]
[1763385382985,0.7,141.37,141.29,0.69]
[1763385383185,11.89473541,141.37,141.32,11.19473541]
[1763385383586,11.89473541,141.36,141.27,9.19]
[1763385383780,11.89473541,141.36,141.31,11.19473541]
[1763385384090,0.7,141.35,141.31,11.19473541]
[1763385384296,8.5,141.34,141.31,11.19473541]
[1763385384707,8.5,141.34,141.32,11.19473541]
[1763385384909,9.2,141.34,141.32,11.19473541]
[1763385385083,0.7,141.33,141.32,11.19473541]
[1763385385284,0.7,141.33,141.28,0.69]
[1763385385486,0.7,141.33,141.31,11.19473541]
[1763385386704,0.7,141.33,141.3,11.19473541]
[1763385386887,0.7,141.33,141.29,11.19473541]
[1763385387207,11.89473541,141.33,141.24,18.12096]
[1763385387393,11.89473541,141.33,141.22,8.6]
[1763385387394,11.19473541,141.32,141.22,8.6]
[1763385387710,8.5,141.31,141.27,11.19473541]
[1763385388003,9.2,141.31,141.29,11.19473541]
[1763385388187,8.5,141.31,141.3,11.19473541]
[1763385389602,104.6,141.35,141.3,11.19473541]
[1763385389603,8.5,141.34,141.3,23.07947082]
[1763385389805,8.5,141.34,141.33,11.19473541]
[1763385390210,0.2,141.38,141.33,11.88473541]
[1763385390395,0.2,141.38,141.3,26.77184326]
[1763385390396,0.2,141.38,141.37,11.19473541]
[1763385390894,0.2,141.38,141.37,11.88473541]
[1763385391292,8.7,141.42,141.37,11.88473541]
[1763385391590,0.2,141.42,141.41,11.19473541]
[1763385392099,0.2,141.42,141.41,11.78473541]
[1763385392895,0.2,141.42,141.41,11.28473541]
[1763385393287,0.2,141.42,141.41,11.19473541]
[1763385393486,0.9,141.42,141.41,11.19473541]
[1763385393808,0.2,141.42,141.41,11.19473541]
[1763385396124,0.2,141.42,141.37,26.62096]
[1763385396291,0.2,141.42,141.41,11.19473541]
[1763385398814,0.92,141.42,141.41,11.19473541]
[1763385400687,0.92,141.42,141.35,26.71096]
[1763385400890,0.92,141.42,141.41,6.41627526]
[1763385404113,0.92,141.42,141.4,6.41627526]
[1763385404311,0.92,141.42,141.38,6.41627526]
[1763385404312,9.2,141.41,141.38,6.41627526]
[1763385404712,0.72,141.4,141.33,26.60096]
[1763385404941,0.72,141.4,141.39,6.41627526]
[1763385405118,8.48,141.41,141.39,6.41627526]
[1763385405432,8.48,141.41,141.4,6.41627526]
[1763385405732,9.2,141.41,141.4,6.41627526]
[1763385412617,9.2,141.41,141.37,18.12096]
[1763385412817,9.2,141.41,141.4,6.41627526]
[1763385413738,9.2,141.41,141.33,9.78882769]
[1763385413739,0.72,141.41,141.35,0.09]
[1763385413938,0.72,141.41,141.4,6.41627526]
[1763385415438,8.68,141.42,141.4,6.41627526]
[1763385415640,8.68,141.42,141.41,6.41627526]
[1763385415817,8.68,141.42,141.36,6.41627526]
[1763385415818,8.68,141.42,141.4,6.41627526]
[1763385416017,0.72,141.41,141.37,18.12096]
[1763385416219,0.72,141.41,141.4,6.41627526]
[1763385416725,8.68,141.42,141.4,6.41627526]
[1763385417026,9.4,141.42,141.41,6.41627526]
[1763385419465,9.4,141.42,141.4,6.41627526]
[1763385419749,0.72,141.41,141.4,6.41627526]
[1763385420248,0.72,141.41,141.33,0.09]
[1763385420449,0.72,141.41,141.37,6.41627526]
[1763385420663,0.72,141.41,141.31,9.78882769]
[1763385420824,6.41627526,141.39,141.28,0.09]
[1763385421029,27.90978769,141.4,141.3,6.41627526]
[1763385421030,18.12096,141.34,141.3,6.41627526]
[1763385421253,8.48,141.33,141.26,0.09]
[1763385421434,18.12096,141.34,141.3,6.41627526]
[1763385421634,0.72,141.32,141.29,6.41627526]
[1763385421842,0.72,141.32,141.28,6.41627526]
[1763385422050,0.72,141.32,141.29,6.41627526]
[1763385422250,0.72,141.32,141.28,6.41627526]
[1763385422737,7.13627526,141.32,141.26,6.41627526]
[1763385423143,0.72,141.31,141.26,6.41627526]
[1763385423345,8.48,141.3,141.26,6.41627526]
[1763385423545,8.48,141.3,141.25,0.1]
[1763385423842,0.72,141.29,141.26,6.41627526]
[1763385424039,0.72,141.34,141.28,12.83255052]
[1763385424240,8.48,141.33,141.28,6.41627526]
[1763385424463,0.72,141.32,141.28,6.41627526]
[1763385424861,8.48,141.33,141.31,6.41627526]
[1763385425054,9.2,141.33,141.32,6.41627526]
[1763385425440,8.48,141.33,141.32,6.41627526]
[1763385427175,8.48,141.36,141.32,6.50627526]
[1763385427382,8.48,141.36,141.35,6.41627526]
[1763385428186,9.19,141.36,141.35,6.41627526]
[1763385430678,9.19,141.36,141.33,6.41627526]
[1763385430894,0.71,141.35,141.33,6.41627526]
[1763385431201,0.71,141.35,141.32,6.41627526]
[1763385431374,0.71,141.35,141.27,0.09]
[1763385431375,0.71,141.35,141.3,6.41627526]
[1763385431579,16.20510295,141.34,141.28,6.41627526]
[1763385431880,9.78882769,141.34,141.28,6.41627526]
[1763385432090,18.83096,141.35,141.31,6.41627526]
[1763385432091,18.83096,141.33,141.31,6.41627526]
[1763385432270,8.48,141.32,141.31,6.41627526]
[1763385432479,8.48,141.32,141.3,6.41627526]
[1763385432480,9.19,141.32,141.3,6.41627526]
[1763385432683,0.71,141.31,141.3,6.41627526]
[1763385432885,8.48,141.32,141.3,6.41627526]
[1763385433087,8.48,141.32,141.31,6.41627526]
[1763385433676,8.48,141.32,141.27,18.21096]
[1763385433871,8.48,141.32,141.31,6.41627526]
[1763385433872,9.19,141.32,141.31,6.41627526]
[1763385434198,8.48,141.32,141.31,6.41627526]
[1763385437492,8.48,141.32,141.29,0.09]
[1763385437702,8.48,141.32,141.31,6.41627526]
[1763385439672,9.15,141.32,141.31,6.41627526]
[1763385440070,8.48,141.32,141.31,6.41627526]
[1763385440503,9.15,141.32,141.31,6.41627526]
[1763385444308,9.15,141.32,141.28,6.41627526]
[1763385444523,16.87510295,141.31,141.25,0.1]
[1763385444695,10.45882769,141.31,141.27,6.41627526]
[1763385445006,0.67,141.3,141.27,6.41627526]
[1763385445791,8.48,141.29,141.25,0.1]
[1763385445997,8.48,141.29,141.28,6.41627526]
[1763385446679,9.15,141.29,141.28,6.41627526]
[1763385447779,9.15,141.33,141.28,12.83255052]
[1763385447983,8.48,141.33,141.32,6.41627526]
[1763385448286,9.15,141.33,141.32,6.41627526]
[1763385451011,9.15,141.33,141.28,6.41627526]
[1763385451210,0.67,141.32,141.3,6.41627526]
[1763385451412,0.67,141.32,141.28,6.41627526]
[1763385451601,9.78882769,141.31,141.27,6.41627526]
[1763385451804,8.48,141.3,141.27,6.41627526]
[1763385452018,9.15,141.3,141.27,6.41627526]
[1763385452222,0.67,141.29,141.27,6.41627526]
[1763385452432,9.78882769,141.28,141.25,6.51627526]
[1763385452607,8.48,141.27,141.25,0.1]
[1763385452803,9.15,141.27,141.25,0.1]
[1763385453046,0.67,141.26,141.25,0.1]
[1763385454143,8.48,141.27,141.25,6.51627526]
[1763385454309,8.48,141.27,141.26,6.41627526]
[1763385454834,8.48,141.27,141.25,0.1]
[1763385455009,8.48,141.27,141.26,6.41627526]
[1763385457009,8.48,141.29,141.26,6.41627526]
[1763385457332,8.48,141.29,141.28,6.41627526]
[1763385457631,0.69,141.28,141.27,6.41627526]
[1763385457836,0.69,141.28,141.25,0.1]
[1763385457837,0.69,141.28,141.26,6.41627526]
[1763385458134,0.69,141.28,141.25,0.1]
[1763385459249,0.69,141.28,141.26,6.41627526]
[1763385459821,8.48,141.29,141.27,6.41627526]
[1763385460027,8.48,141.29,141.28,6.41627526]
[1763385460414,8.48,141.29,141.27,6.41627526]
[1763385460640,0.69,141.28,141.27,6.41627526]
[1763385460932,9.17,141.29,141.27,6.41627526]
[1763385461115,9.17,141.29,141.28,6.41627526]
[1763385462440,8.48,141.29,141.28,6.41627526]
[1763385462838,8.48,141.29,141.28,11.27699504]
[1763385463130,9.78882769,141.36,141.28,11.18699504]
[1763385463131,8.48,141.31,141.28,11.18699504]
[1763385463432,8.48,141.31,141.26,0.09]
[1763385463433,8.48,141.31,141.3,11.18699504]
[1763385463937,9.17,141.31,141.3,11.18699504]
[1763385464240,9.17,141.31,141.28,11.18699504]
[1763385464446,0.69,141.3,141.28,11.18699504]
[1763385464620,9.17,141.31,141.29,11.18699504]
[1763385464816,9.17,141.31,141.3,11.18699504]
[1763385465322,8.48,141.31,141.3,11.18699504]
[1763385468142,8.48,141.31,141.3,11.27699504]
[1763385468332,18.81096,141.36,141.3,11.27699504]
[1763385468638,8.48,141.35,141.34,11.18699504]
[1763385468813,9.17,141.35,141.34,11.18699504]
[1763385470525,9.17,141.35,141.28,0.09]
[1763385470838,8.48,141.35,141.34,11.18699504]
[1763385471141,9.17,141.35,141.34,11.18699504]
[1763385471753,8.48,141.35,141.34,11.18699504]
[1763385471933,9.17,141.35,141.34,11.18699504]
[1763385473831,9.17,141.35,141.33,11.18699504]
[1763385474039,0.69,141.34,141.31,11.18699504]
[1763385474423,0.69,141.34,141.32,11.18699504]
[1763385476125,0.69,141.34,141.33,11.18699504]
[1763385476322,8.48,141.35,141.33,11.18699504]
[1763385476535,9.17,141.35,141.34,11.18699504]
[1763385476850,9.17,141.35,141.29,0.09]
[1763385477020,9.17,141.35,141.33,11.18699504]
[1763385477426,0.69,141.34,141.29,0.09]
[1763385477649,0.69,141.34,141.33,11.18699504]
[1763385481451,0.69,141.34,141.26,0.09]
[1763385481669,8.46,141.33,141.26,0.09]
[1763385481829,8.46,141.33,141.3,11.18699504]
[1763385482129,0.69,141.32,141.31,11.18699504]
[1763385483357,8.46,141.33,141.31,11.18699504]
[1763385483539,8.46,141.33,141.32,11.18699504]
[1763385484949,9.15,141.33,141.32,11.18699504]
[1763385485120,9.15,141.33,141.26,15.553]
[1763385485121,9.15,141.33,141.27,0.09]
[1763385485324,0.69,141.32,141.27,18.12096]
[1763385485525,0.69,141.32,141.3,11.18699504]
[1763385486628,8.46,141.33,141.31,11.18699504]
[1763385486934,8.46,141.33,141.27,18.12096]
[1763385487332,8.46,141.33,141.31,11.18699504]
[1763385487534,0.7,141.32,141.31,11.18699504]
[1763385487956,30.00795504,141.32,141.25,0.1]
[1763385488167,11.18699504,141.3,141.26,11.18699504]
[1763385488327,8.46,141.29,141.26,11.18699504]
[1763385488642,8.46,141.29,141.28,11.18699504]
[1763385488838,8.46,141.29,141.25,0.1]
[1763385488839,0.7,141.28,141.26,11.18699504]
[1763385489238,0.7,141.28,141.27,11.18699504]
[1763385490055,26.58096,141.29,141.27,11.18699504]
[1763385490056,8.46,141.29,141.27,11.18699504]
[1763385490354,8.46,141.3,141.28,11.18699504]
[1763385490557,8.46,141.3,141.29,11.18699504]
[1763385490741,9.16,141.3,141.25,0.19]
[1763385490941,9.16,141.3,141.29,11.18699504]
[1763385491550,9.16,141.3,141.28,11.18699504]
[1763385491764,0.7,141.29,141.27,11.18699504]
[1763385492543,0.7,141.29,141.28,11.18699504]
[1763385492844,0.7,141.29,141.27,11.18699504]
[1763385493039,0.7,141.29,141.28,11.18699504]
[1763385493245,8.46,141.29,141.28,11.18699504]
[1763385494669,9.16,141.29,141.25,18.22096]
[1763385494863,9.16,141.29,141.28,11.18699504]
[1763385495065,9.78882769,141.35,141.28,29.30795504]
[1763385495066,0.7,141.35,141.28,29.30795504]
[1763385495254,176.58699504,141.4,141.34,11.18699504]
[1763385495568,8.46,141.37,141.35,11.18699504]
[1763385495775,8.46,141.37,141.36,11.18699504]
[1763385496070,9.16,141.37,141.36,11.18699504]
[1763385496264,8.46,141.37,141.36,11.18699504]
[1763385497855,9.18,141.37,141.36,11.18699504]
[1763385499661,9.18,141.37,141.3,11.18699504]
[1763385499863,0.72,141.36,141.34,11.18699504]
[1763385501675,0.72,141.36,141.3,0.09]
[1763385501855,0.72,141.36,141.34,11.18699504]
[1763385502059,0.72,141.36,141.3,0.09]
[1763385502060,0.72,141.36,141.35,11.18699504]
[1763385504872,0.72,141.4,141.35,11.18699504]
[1763385505079,9.18,141.39,141.38,11.18699504]
[1763385506298,9.18,141.39,141.38,10.9634683]
[1763385506498,9.18,141.39,141.38,11.18699504]
[1763385506678,9.18,141.39,141.33,0.09]
[1763385506679,9.18,141.39,141.37,11.18699504]
[1763385506885,0.72,141.38,141.31,26.58096]
[1763385507091,0.72,141.38,141.36,11.18699504]
[1763385507806,0.72,141.38,141.37,11.18699504]
[1763385508877,8.46,141.39,141.37,11.18699504]
[1763385509082,8.46,141.39,141.38,11.18699504]
[1763385509792,8.46,141.41,141.38,11.27699504]
[1763385509988,8.46,141.41,141.4,11.18699504]
[1763385511011,9.18,141.41,141.4,11.18699504]
[1763385511190,8.46,141.41,141.4,11.18699504]
[1763385512000,8.46,141.41,141.33,18.21096]
[1763385512001,9.18,141.41,141.33,18.21096]
[1763385512213,0.72,141.4,141.33,18.21096]
[1763385512409,0.72,141.4,141.36,11.18699504]
[1763385512714,0.72,141.4,141.37,11.18699504]
[1763385513897,0.72,141.4,141.38,11.18699504]
[1763385514399,0.72,141.4,141.37,11.18699504]
[1763385515113,0.72,141.4,141.33,18.21096]
[1763385515321,0.72,141.4,141.37,11.18699504]
[1763385516595,0.72,141.4,141.38,11.18699504]
[1763385517904,0.72,141.4,141.34,18.21096]
[1763385518105,0.72,141.4,141.38,11.18699504]
[1763385519891,0.72,141.4,141.34,18.12096]
[1763385520210,11.90699504,141.4,141.35,11.18699504]
[1763385520518,20.97582273,141.39,141.34,11.18699504]
[1763385520716,8.46,141.38,141.34,11.18699504]
[1763385520912,10.47882769,141.37,141.33,11.18699504]
[1763385521104,10.47882769,141.37,141.34,11.18699504]
[1763385521506,8.46,141.38,141.36,11.18699504]
[1763385521698,0.69,141.39,141.37,11.18699504]
[1763385522025,0.69,141.39,141.38,11.18699504]
[1763385522321,9.15,141.39,141.38,11.18699504]
[1763385522506,9.15,141.39,141.34,0.09]
[1763385522507,9.15,141.39,141.37,11.18699504]
[1763385522706,0.69,141.38,141.36,11.18699504]
[1763385523022,0.69,141.38,141.32,0.09]
[1763385523023,0.69,141.38,141.34,11.18699504]
[1763385524938,0.69,141.38,141.35,6.4226841]
[1763385527517,8.46,141.37,141.35,6.4226841]
[1763385527936,9.15,141.37,141.36,6.4226841]
[1763385528121,9.15,141.37,141.35,6.4226841]
[1763385528833,0.69,141.36,141.3,21.36282396]
[1763385529035,8.46,141.35,141.34,6.4226841]
[1763385529845,9.15,141.35,141.34,6.4226841]
[1763385530031,9.15,141.35,141.33,6.4226841]
[1763385532338,9.15,141.35,141.34,6.4226841]
[1763385534240,8.46,141.35,141.34,6.4226841]
[1763385538060,9.15,141.35,141.34,6.4226841]
[1763385538432,9.15,141.35,141.33,6.4226841]
[1763385538853,0.69,141.34,141.33,6.4226841]
[1763385539443,0.69,141.34,141.29,21.27282396]
[1763385539640,0.69,141.34,141.31,6.4226841]
[1763385540250,0.69,141.34,141.3,6.4226841]
[1763385540651,9.78882769,141.33,141.27,18.12096]
[1763385540866,6.4226841,141.3,141.25,0.1]
[1763385541065,6.4226841,141.27,141.25,0.1]
[1763385541284,15.5726841,141.26,141.25,0.1]
[1763385541568,15.5726841,141.26,141.22,0.1]
[1763385541569,25.36151179,141.26,141.22,0.1]
[1763385541779,16.21151179,141.23,141.22,0.1]
[1763385542091,18.24882769,141.23,141.22,0.1]
[1763385542248,25.36151179,141.23,141.22,0.1]
[1763385542444,9.15,141.23,141.22,0.1]
[1763385542662,17.4630523,141.32,141.22,6.5226841]
[1763385542663,0.69,141.25,141.22,6.5226841]
[1763385542866,8.46,141.24,141.23,6.4226841]
[1763385543060,8.46,141.24,141.22,0.1]
[1763385543368,8.46,141.24,141.22,6.5226841]
[1763385543369,9.15,141.24,141.22,6.5226841]
[1763385543669,0.69,141.23,141.22,6.5226841]
[1763385544169,8.46,141.24,141.22,6.5226841]
[1763385544473,9.15,141.24,141.22,0.1]
[1763385544657,9.15,141.24,141.23,6.4226841]
[1763385545174,8.46,141.24,141.23,6.4226841]
[1763385546747,9.18,141.24,141.23,6.4226841]
[1763385548584,9.18,141.24,141.22,6.5226841]
[1763385548884,0.72,141.23,141.22,0.1]
[1763385550880,8.46,141.24,141.22,0.1]
[1763385550881,9.18,141.24,141.22,6.5226841]
[1763385551085,9.18,141.24,141.23,6.4226841]
[1763385551384,8.46,141.24,141.23,6.4226841]
[1763385552878,9.18,141.24,141.23,6.4226841]
[1763385553256,9.18,141.24,141.22,0.1]
[1763385553478,9.18,141.24,141.23,6.4226841]
[1763385554055,8.46,141.24,141.23,6.4226841]
[1763385554858,8.46,141.24,141.22,0.1]
[1763385555370,8.46,141.24,141.23,6.4226841]
[1763385556372,0.72,141.27,141.23,6.4226841]
[1763385556587,0.72,141.27,141.26,6.4226841]
[1763385556959,9.18,141.27,141.26,6.4226841]
[1763385557173,9.18,141.27,141.25,6.4226841]
[1763385557380,0.67,141.26,141.25,6.4226841]
[1763385557767,10.45882769,141.26,141.22,6.5226841]
[1763385557966,10.45882769,141.26,141.22,12.9453682]
[1763385558290,0.67,141.25,141.22,0.1]
[1763385558465,8.46,141.24,141.23,6.4226841]
[1763385558888,9.13,141.24,141.22,0.1]
[1763385559062,8.46,141.24,141.23,6.4226841]
[1763385560090,9.13,141.24,141.23,6.4226841]
[1763385560675,9.13,141.24,141.22,0.1]
[1763385560872,0.67,141.23,141.22,6.5226841]
[1763385561775,8.46,141.24,141.22,6.5226841]
[1763385561977,9.13,141.24,141.23,6.4226841]
[1763385563070,8.46,141.24,141.23,6.4226841]
[1763385563594,9.13,141.24,141.23,6.4226841]
[1763385563976,8.46,141.24,141.23,6.4226841]
[1763385565465,9.13,141.24,141.22,0.1]
[1763385565669,10.45882769,141.23,141.22,0.1]
[1763385565887,0.67,141.23,141.22,0.1]
[1763385566165,8.46,141.23,141.22,6.5226841]
[1763385566365,9.13,141.23,141.22,6.5226841]
[1763385567116,0.67,141.3,141.22,13.79374747]
[1763385567266,8.46,141.32,141.29,6.4226841]
[1763385567592,18.91882769,141.32,141.29,6.4226841]
[1763385567795,0.67,141.31,141.29,6.4226841]
[1763385568103,18.12096,141.32,141.3,6.4226841]
[1763385568269,9.13,141.31,141.3,6.4226841]
[1763385569184,9.13,141.31,141.26,8.46]
[1763385569375,0.67,141.3,141.29,6.4226841]
[1763385570510,0.67,141.3,141.25,18.31096]
[1763385570685,0.67,141.3,141.28,6.4226841]
[1763385571998,0.67,141.3,141.26,6.4226841]
[1763385572181,9.78882769,141.29,141.24,6.4226841]
[1763385572381,8.46,141.28,141.24,6.4226841]
[1763385572600,9.13,141.28,141.25,6.4226841]
[1763385572907,0.67,141.27,141.25,6.4226841]
[1763385573620,8.46,141.28,141.24,0.19]
[1763385573810,8.46,141.28,141.27,6.4226841]
[1763385574113,9.13,141.28,141.26,6.4226841]
[1763385574320,8.46,141.28,141.26,6.4226841]
[1763385574522,9.13,141.28,141.26,6.4226841]
[1763385576417,0.69,141.27,141.25,6.4226841]
[1763385576920,0.69,141.27,141.24,6.4226841]
[1763385577696,0.69,141.27,141.25,6.4226841]
[1763385578418,0.69,141.27,141.22,0.1]
[1763385578719,0.69,141.27,141.22,0.29]
[1763385578926,0.69,141.27,141.26,6.4226841]
[1763385579789,8.46,141.28,141.26,6.4226841]
[1763385580085,9.15,141.28,141.27,6.4226841]
[1763385580620,9.15,141.28,141.23,18.31096]
[1763385580803,0.69,141.27,141.25,6.4226841]
[1763385580983,0.69,141.27,141.26,6.4226841]
[1763385581693,0.69,141.27,141.25,6.4226841]
[1763385581893,0.69,141.27,141.26,6.4226841]
[1763385582686,0.69,141.27,141.25,6.4226841]
[1763385583299,0.69,141.27,141.24,6.4226841]
[1763385583608,0.69,141.27,141.23,6.4226841]
[1763385583918,0.69,141.27,141.24,6.4226841]
[1763385584813,0.69,141.27,141.24,11.19841731]
[1763385584995,0.69,141.27,141.22,0.1]
[1763385584996,0.69,141.27,141.26,11.19841731]
[1763385585405,8.46,141.28,141.26,11.19841731]
[1763385585591,9.15,141.28,141.27,11.19841731]
[1763385586810,9.15,141.28,141.26,11.19841731]
[1763385587015,0.69,141.27,141.26,11.19841731]
[1763385587813,8.46,141.28,141.26,11.19841731]
[1763385588117,9.15,141.28,141.27,11.19841731]
[1763385588500,8.46,141.28,141.27,11.19841731]
[1763385588889,0.69,141.32,141.27,11.38841731]
[1763385589096,0.69,141.32,141.23,34.99008237]
[1763385589097,0.69,141.34,141.31,11.19841731]
[1763385589407,0.69,141.34,141.33,11.19841731]
[1763385589708,9.15,141.34,141.33,11.19841731]
[1763385591513,9.15,141.34,141.28,0.19]
[1763385591808,9.15,141.34,141.33,11.19841731]
[1763385593528,8.46,141.34,141.33,11.19841731]
[1763385594440,8.46,141.34,141.28,18.31096]
[1763385594441,9.15,141.34,141.28,18.31096]
[1763385594715,9.15,141.34,141.24,20.95135917]
[1763385594716,0.69,141.33,141.25,0.19]
[1763385594893,11.88841731,141.33,141.28,11.19841731]
[1763385595321,11.88841731,141.32,141.27,11.19841731]
[1763385595524,8.46,141.31,141.26,11.19841731]
[1763385595728,9.15,141.31,141.26,11.19841731]
[1763385595947,9.15,141.31,141.24,18.12096]
[1763385595948,11.19841731,141.29,141.24,11.19841731]
[1763385596098,8.46,141.28,141.23,11.19841731]
[1763385596301,9.15,141.28,141.23,11.19841731]
[1763385596500,0.69,141.27,141.23,11.19841731]
[1763385596827,0.69,141.27,141.26,11.19841731]
[1763385597203,9.15,141.27,141.26,11.19841731]
[1763385597416,9.15,141.27,141.25,11.19841731]
[1763385598008,0.69,141.26,141.22,18.41096]